fUST/lending_fUST_20250204
["ID","MTS","AMOUNT","RATE_DAILY","PERIOD"]
[351614864,1738666232163,-354.5958847,0.000163,2]
[351614865,1738666232172,-354.1907635,0.000163,2]
[351614866,1738666232182,-269.14233695,0.00016338,2]
[351614867,1738666232191,-152.0,0.00016354,2]
[351614868,1738666232200,-1515.95211616,0.00016376,2]
[351614869,1738666232210,-153.0,0.000164,2]
[351614870,1738666232220,-272.52131296,0.00016428,2]
[351614871,1738666232229,-499.0,0.00016437,2]
[351614872,1738666232238,-500.0,0.00016438,2]
[351614873,1738666232248,-500.0,0.00016438,2]
[351614874,1738666232259,-501.79114185,0.00016438,2]
[351614875,1738666232269,-500.0,0.00016438,2]
[351614876,1738666232278,-494.95366369,0.00016438,2]
[351614877,1738666232288,-500.0,0.00016438,2]
[351614878,1738666232298,-500.0,0.00016438,2]
[351614879,1738666232307,-500.0,0.00016438,2]
[351614880,1738666232317,-500.0,0.00016438,2]
[351614881,1738666232326,-2139.9,0.00016438,2]
[351614882,1738666232335,-500.0,0.00016438,2]
[351614883,1738666232345,-202.24429713,0.00016438,2]
[351614884,1738666232354,-500.0,0.00016438,2]
[351614885,1738666232364,-500.0,0.00016438,2]
[351614886,1738666232373,-715.56,0.00016438,2]
[351614887,1738666232383,-500.0,0.00016438,2]
[351614888,1738666232394,-507.20707268,0.00016438,2]
[351614889,1738666232403,-500.0,0.00016438,2]
[351614890,1738666232413,-768.8,0.00016438,2]
[351614891,1738666232422,-500.0,0.00016438,2]
[351614892,1738666232432,-500.0,0.00016438,2]
[351614893,1738666232441,-500.0,0.00016438,2]
[351614894,1738666232451,-500.0,0.00016438,2]
[351614895,1738666232460,-464.26912846,0.00016438,2]
[351614896,1738666232470,-500.0,0.00016438,2]
[351614897,1738666232480,-214.25,0.00016438,2]
[351614898,1738666232490,-500.0,0.00016438,2]
[351614899,1738666232499,-594.83,0.00016438,2]
[351614900,1738666232509,-500.0,0.00016438,2]
[351614901,1738666232520,-500.0,0.00016438,2]
[351614902,1738666232529,-500.0,0.00016438,2]
[351614903,1738666232539,-790.55,0.00016438,2]
[351614904,1738666232550,-500.0,0.00016438,2]
[351614905,1738666232560,-500.0,0.00016438,2]
[351614906,1738666232570,-569.24,0.00016438,2]
[351614907,1738666232580,-500.0,0.00016438,2]
[351614908,1738666232590,-572.03,0.00016438,2]
[351614909,1738666232600,-500.0,0.00016438,2]
[351614910,1738666232609,-520.68859544,0.00016438,2]
[351614911,1738666232619,-500.0,0.00016438,2]
[351614912,1738666232629,-500.0,0.00016438,2]
[351614913,1738666232638,-501.75703181,0.00016438,2]
[351614914,1738666232650,-502.04530904,0.00016438,2]
[351614915,1738666232660,-500.0,0.00016438,2]
[351614916,1738666232670,-501.20303368,0.00016438,2]
[351614917,1738666232679,-500.0,0.00016438,2]
[351614918,1738666232689,-500.0,0.00016438,2]
[351614919,1738666232699,-500.91212247,0.00016438,2]
[351614920,1738666232708,-500.0,0.00016438,2]
[351614921,1738666232718,-500.0,0.00016438,2]
[351614922,1738666232728,-501.31913381,0.00016438,2]
[351614923,1738666232737,-500.0,0.00016438,2]
[351614924,1738666232747,-500.0,0.00016438,2]
[351614925,1738666232756,-518.08,0.00016438,2]
[351614926,1738666232765,-500.0,0.00016438,2]
[351614927,1738666232775,-500.0,0.00016438,2]
[351614928,1738666232784,-500.0,0.00016438,2]
[351614929,1738666232793,-500.0,0.00016438,2]
[351614930,1738666232803,-500.0,0.00016438,2]
[351614931,1738666232949,-500.0,0.00016438,2]
[351614932,1738666232959,-1021.31,0.00016438,2]
[351614933,1738666232969,-594.28,0.00016438,2]
[351614934,1738666232979,-500.0,0.00016438,2]
[351614935,1738666232988,-513.82727135,0.00016438,2]
[351614936,1738666232998,-12692.06,0.00016438,2]
[351614937,1738666233007,-500.0,0.00016438,2]
[351614938,1738666233016,-14986.33471796,0.00016438,2]
[351615060,1738666239805,-3085.50528204,0.00016438,2]
[351615062,1738666239815,-500.0,0.00016438,2]
[351615064,1738666239826,-500.0,0.00016438,2]
[351615066,1738666239836,-644.22,0.00016438,2]
[351615068,1738666239845,-685.78,0.00016438,2]
[351615070,1738666239855,-500.0,0.00016438,2]
[351615072,1738666239865,-500.0,0.00016438,2]
[351615074,1738666239875,-2197.12,0.00016438,2]
[351615077,1738666239885,-500.0,0.00016438,2]
[351615079,1738666239895,-500.0,0.00016438,2]
[351615081,1738666239906,-887.57,0.00016438,2]
[351615083,1738666239916,-500.0,0.00016438,2]
[351615085,1738666239925,-500.0,0.00016438,2]
[351615087,1738666239934,-500.0,0.00016438,2]
[351615089,1738666239943,-1028.78,0.00016438,2]
[351615091,1738666239953,-500.0,0.00016438,2]
[351615093,1738666239963,-594.35,0.00016438,2]
[351615095,1738666239972,-500.0,0.00016438,2]
[351615097,1738666239982,-199.37471796,0.00016438,2]
[351615100,1738666239999,-300.62528204,0.00016438,2]
[351615102,1738666240008,-500.0,0.00016438,2]
[351615104,1738666240019,-209.74999794,0.00016438,2]
[351615401,1738666242903,-290.25000206,0.00016438,2]
[351615403,1738666242913,-76.62518421,0.00016438,2]
[351615405,1738666242925,-713.24481579,0.00016438,2]
[351615407,1738666242936,-500.0,0.00016438,2]
[351615409,1738666242945,-200.0,0.00016438,2]
[351615411,1738666242955,-2673.4,0.00016438,2]
[351615413,1738666242964,-1464.01,0.00016438,2]
[351615415,1738666242974,-500.0,0.00016438,2]
[351615417,1738666242984,-500.0,0.00016438,2]
[351615419,1738666242995,-211.5784816,0.00016438,2]
[351615421,1738666243006,-500.0,0.00016438,2]
[351615422,1738666243016,-500.0,0.00016438,2]
[351615423,1738666243026,-500.0,0.00016438,2]
[351615424,1738666243035,-500.0,0.00016438,2]
[351615425,1738666243045,-500.0,0.00016438,2]
[351615426,1738666243054,-500.0,0.00016438,2]
[351615427,1738666243064,-500.0,0.00016438,2]
[351615428,1738666243074,-500.0,0.00016438,2]
[351615429,1738666243084,-500.0,0.00016438,2]
[351615430,1738666243097,-82.26670261,0.00016438,2]
[351615431,1738666243110,-417.73329739,0.00016438,2]
[351615432,1738666243119,-603.4,0.00016438,2]
[351615433,1738666243131,-356.6652349,0.00016438,2]
[351615434,1738666243140,-106.57036771,0.00016438,2]
[351615664,1738666246039,-421.77487753,0.00016438,2]
[351615665,1738666246050,-500.0,0.00016438,2]
[351615668,1738666246060,-961.88,0.00016438,2]
[351615670,1738666246070,-500.0,0.00016438,2]
[351615672,1738666246079,-500.0,0.00016438,2]
[351615674,1738666246089,-523.26795905,0.00016438,2]
[351615676,1738666246101,-500.0,0.00016438,2]
[351615678,1738666246110,-614.57,0.00016438,2]
[351615680,1738666246119,-500.0,0.00016438,2]
[351615682,1738666246129,-562.4,0.00016438,2]
[351615684,1738666246141,-1350.32,0.00016438,2]
[351615685,1738666246150,-479.35680225,0.00016438,2]
[351618698,1738666542660,183.87155,0.00013973,2]
[351618723,1738666975886,5000.31845353,0.0002,120]
[351619522,1738667440015,-500.0,0.00015342,2]
[351619524,1738667440026,-300.0,0.00015421,2]
[351619526,1738667440036,-215.77644943,0.00015422,2]
[351619529,1738667440048,-331.40099454,0.00015422,2]
[351619892,1738667443172,-344.46489065,0.00015422,2]
[351619898,1738667443226,-3975.12274894,0.00015422,2]
[351620230,1738667446665,-16350.77903053,0.00015422,2]
[351622765,1738667499582,183.881857,0.00013973,2]
[351622767,1738667744595,221.96,0.00015012,2]
[351622768,1738667756021,10000.0,0.00015012,2]
[351622769,1738667763947,10000.0,0.00015012,2]
[351622770,1738667771406,10000.0,0.00016,10]
[351622771,1738667777411,10000.0,0.00015012,2]
[351622772,1738667785979,10000.0,0.00015012,2]
[351622773,1738667793737,10000.0,0.00015012,2]
[351622774,1738667815543,3000.0,0.00015012,2]
[351622775,1738668180410,424.2582052,0.0001495,2]
[351622776,1738668334886,372.290399,0.00014253,2]
[351622777,1738668361115,184.396542,0.00013973,2]
[351623067,1738668635135,-3566.3878,0.00015121,2]
[351623080,1738668635245,-1105.86568,0.00015121,2]
[351623082,1738668635254,-339.6297755,0.00015147,2]
[351623084,1738668635264,-181.29099129,0.00015181,2]
[351623086,1738668635275,-2177.83275935,0.00015181,2]
[351623373,1738668638184,-10568.24496484,0.00015181,2]
[351623375,1738668638193,-300.0,0.00015192,2]
[351623377,1738668638203,-24900.0,0.00015193,2]
[351623378,1738668638212,-250.0,0.00015194,2]
[351623380,1738668638222,-1778.72111559,0.00015322,2]
[351623382,1738668638233,-468.4120025,0.00015322,2]
[351623384,1738668638243,-500.0,0.00015342,2]
[351623386,1738668638252,-44.1879975,0.00015345,2]
[351623388,1738668638263,-287.2129971,0.00015345,2]
[351623390,1738668638273,-250.0381,0.00015851,2]
[351623392,1738668638282,-1000.0,0.00016,4]
[351623394,1738668638291,-515.920947,0.00016,2]
[351623396,1738668638300,-162.372,0.0001601,2]
[351623398,1738668638310,-603.82846583,0.00016064,2]
[351623400,1738668638319,-1470.47355268,0.0001615,2]
[351623402,1738668638328,-1470.47355268,0.0001625,2]
[351623403,1738668638337,-156.13678201,0.00016348,2]
[351623406,1738668638354,-343.86321799,0.00016348,2]
[351623408,1738668638363,-255.86575857,0.0001635,2]
[351623410,1738668638379,-1214.60779411,0.0001635,2]
[351623412,1738668638389,-3000.0,0.000164,2]
[351623415,1738668638398,-3000.0,0.0001641,2]
[351623418,1738668638408,-3000.0,0.0001642,2]
[351623420,1738668638418,-3000.0,0.0001643,2]
[351623422,1738668638427,-499.0,0.00016437,2]
[351623424,1738668638436,-500.0,0.00016438,2]
[351623427,1738668638445,-500.51664669,0.00016438,2]
[351623428,1738668638455,-500.0,0.00016438,2]
[351623431,1738668638464,-500.0,0.00016438,2]
[351623434,1738668638473,-575.7623063,0.00016438,2]
[351623436,1738668638483,-500.0,0.00016438,2]
[351623438,1738668638492,-500.0,0.00016438,2]
[351623440,1738668638501,-500.0,0.00016438,2]
[351623442,1738668638510,-503.63709508,0.00016438,2]
[351623443,1738668638519,-552.95322229,0.00016438,2]
[351623445,1738668638528,-315.77437022,0.00016438,2]
[351623735,1738668643314,-185.65577042,0.00016438,2]
[351623737,1738668643324,-500.0,0.00016438,2]
[351623740,1738668643334,-502.17910134,0.00016438,2]
[351623742,1738668643344,-460.76973722,0.00016438,2]
[351623744,1738668643354,-522.34973561,0.00016438,2]
[351624026,1738668646360,-56.58591146,0.00016438,2]
[351624028,1738668646370,-500.0,0.00016438,2]
[351624030,1738668646379,-252.15708785,0.00016438,2]
[351624033,1738668646389,-500.0,0.00016438,2]
[351624035,1738668646398,-500.0,0.00016438,2]
[351624036,1738668646407,-500.0,0.00016438,2]
[351624039,1738668646418,-500.0,0.00016438,2]
[351624041,1738668646431,-500.0,0.00016438,2]
[351624042,1738668646440,-500.0,0.00016438,2]
[351624044,1738668646449,-452.45943252,0.00016438,2]
[351624046,1738668646459,-500.0,0.00016438,2]
[351624048,1738668646468,-500.0,0.00016438,2]
[351624050,1738668646477,-500.0,0.00016438,2]
[351624052,1738668646486,-500.0,0.00016438,2]
[351624054,1738668646496,-500.0,0.00016438,2]
[351624056,1738668646505,-506.71006065,0.00016438,2]
[351624058,1738668646514,-500.0,0.00016438,2]
[351624060,1738668646524,-500.0,0.00016438,2]
[351624062,1738668646532,-500.0,0.00016438,2]
[351624064,1738668646541,-500.0,0.00016438,2]
[351624066,1738668646550,-500.0,0.00016438,2]
[351624068,1738668646560,-220.91395251,0.00016438,2]
[351624070,1738668646569,-500.0,0.00016438,2]
[351624072,1738668646578,-500.73741514,0.00016438,2]
[351624074,1738668646587,-500.0,0.00016438,2]
[351624076,1738668646597,-265.81682535,0.00016438,2]
[351624078,1738668646606,-9.24811652,0.00016438,2]
[351624081,1738668646618,-613.77765079,0.00016438,2]
[351624083,1738668646627,-500.0,0.00016438,2]
[351624085,1738668646637,-500.0,0.00016438,2]
[351624086,1738668646647,-500.0,0.00016438,2]
[351624087,1738668646656,-500.0,0.00016438,2]
[351624088,1738668646667,-378.27194955,0.00016438,2]
[351624089,1738668646679,-500.0,0.00016438,2]
[351624090,1738668646689,-500.0,0.00016438,2]
[351624091,1738668646698,-500.0,0.00016438,2]
[351624092,1738668646707,-500.0,0.00016438,2]
[351624093,1738668646717,-387.34314601,0.00016438,2]
[351624094,1738668646727,-369.72425285,0.00016438,2]
[351624699,1738668745771,167.056711,0.00013699,2]
[351624700,1738669160351,184.905397,0.00013973,2]
[351624749,1738669832479,-3845.2,0.0001503,2]
[351624751,1738669832491,-633.90707799,0.0001503,2]
[351624754,1738669832502,-20420.89292201,0.0001503,2]
[351624756,1738669832512,-438.829559,0.0001527,2]
[351624758,1738669832522,-500.0,0.00015342,2]
[351624760,1738669832532,-471.94142329,0.00016025,2]
[351624762,1738669832548,-1426.3593461,0.00016158,2]
[351624764,1738669832559,-13258.95722438,0.00016176,2]
[351624766,1738669832570,-298.4449916,0.00016237,2]
[351624767,1738669832580,-1426.3593461,0.00016258,2]
[351624769,1738669832591,-300.0,0.00016263,2]
[351624771,1738669832601,-1530.3630104,0.00016273,2]
[351624773,1738669832612,-29721.03272111,0.00016337,2]
[351624775,1738669832622,-153.0,0.00016356,2]
[351624777,1738669832632,-215.6880554,0.00016356,2]
[351624780,1738669832643,-153.0,0.00016356,2]
[351624782,1738669832652,-153.0,0.00016356,2]
[351624784,1738669832662,-306.8402966,0.00016356,2]
[351624786,1738669832672,-153.0,0.00016356,2]
[351624790,1738669832681,-215.6880554,0.00016356,2]
[351624793,1738669832693,-153.0,0.00016356,2]
[351624796,1738669832702,-153.0,0.00016356,2]
[351624799,1738669832712,-154.4937493,0.00016356,2]
[351624802,1738669832721,-153.0,0.00016356,2]
[351624805,1738669832731,-154.4937493,0.00016356,2]
[351624808,1738669832741,-215.4976166,0.00016356,2]
[351624811,1738669832751,-153.0,0.00016356,2]
[351624814,1738669832760,-154.4937493,0.00016356,2]
[351624817,1738669832771,-153.0,0.00016356,2]
[351624820,1738669832781,-154.4937493,0.00016356,2]
[351624823,1738669832791,-1426.3593461,0.00016358,2]
[351624826,1738669832800,-500.0,0.00016436,2]
[351624829,1738669832810,-500.0,0.00016436,2]
[351624831,1738669832820,-500.0,0.00016436,2]
[351624833,1738669832829,-433.08229761,0.00016436,2]
[351624835,1738669832838,-500.0,0.00016436,2]
[351624837,1738669832848,-500.0,0.00016436,2]
[351624839,1738669832858,-500.0,0.00016436,2]
[351624841,1738669832868,-500.0,0.00016436,2]
[351624843,1738669832878,-644.07450652,0.00016436,2]
[351624845,1738669832888,-500.0,0.00016436,2]
[351624847,1738669832898,-500.0,0.00016436,2]
[351624849,1738669832907,-401.69871018,0.00016436,2]
[351624851,1738669832918,-500.0,0.00016436,2]
[351624853,1738669832937,-500.0,0.00016436,2]
[351624855,1738669832951,-500.0,0.00016436,2]
[351624857,1738669832963,-346.65749972,0.00016436,2]
[351624859,1738669832978,-500.0,0.00016436,2]
[351624861,1738669832988,-500.0,0.00016436,2]
[351624863,1738669832998,-500.0,0.00016436,2]
[351624865,1738669833009,-500.0,0.00016436,2]
[351624866,1738669833023,-500.0,0.00016436,2]
[351624867,1738669833035,-317.31918428,0.00016436,2]
[351624868,1738669833047,-500.0,0.00016436,2]
[351624870,1738669833058,-500.0,0.00016436,2]
[351624872,1738669833069,-500.0,0.00016436,2]
[351624874,1738669833081,-500.0,0.00016436,2]
[351624876,1738669833091,-500.0,0.00016436,2]
[351624878,1738669833101,-500.0,0.00016436,2]
[351624880,1738669833113,-500.0,0.00016436,2]
[351624882,1738669833123,-500.0,0.00016436,2]
[351624884,1738669833133,-500.0,0.00016436,2]
[351624886,1738669833144,-499.0,0.00016436,2]
[351624888,1738669833154,-280.60574313,0.00016437,2]
[351624890,1738669833164,-27560.28466066,0.00016437,7]
[351624893,1738669833177,-649.51527855,0.00016437,7]
[351625375,1738669843566,-3624.66833024,0.00016437,7]
[351625376,1738669843620,-493.99999998,0.00016437,7]
[351625387,1738669846454,-40248.88300294,0.00016437,7]
[351625687,1738670148877,184.902376,0.00013973,2]
[351625745,1738671033964,-345.75696,0.00015244,2]
[351625747,1738671033974,-1288.53809821,0.00015315,2]
[351625757,1738671034069,-10350.0,0.00015315,2]
[351626305,1738671043000,-13261.46190179,0.00015315,2]
[351626307,1738671043010,-250.0,0.0001534,2]
[351626309,1738671043020,-500.0,0.00015342,2]
[351626311,1738671043029,-1000.0,0.00016,5]
[351626313,1738671043039,-261.13936765,0.00016237,2]
[351626315,1738671043048,-932.1361833,0.00016273,2]
[351626316,1738671043057,-400.08,0.00016335,2]
[351626317,1738671043067,-400.08,0.00016335,2]
[351626319,1738671043076,-400.08,0.00016335,2]
[351626321,1738671043086,-400.08,0.00016335,2]
[351626323,1738671043095,-174.74410633,0.00016337,2]
[351626326,1738671043105,-13258.95722438,0.00016345,2]
[351626328,1738671043114,-400.08,0.0001639,2]
[351626331,1738671043124,-400.08,0.0001639,2]
[351626333,1738671043134,-400.08,0.0001639,2]
[351626335,1738671043143,-400.08,0.0001639,2]
[351626337,1738671043152,-151.0,0.000164,2]
[351626339,1738671043161,-151.0,0.000164,2]
[351626341,1738671043171,-151.0,0.000164,2]
[351626343,1738671043180,-151.0,0.000164,2]
[351626345,1738671043190,-151.0,0.000164,2]
[351626347,1738671043199,-2074.00668937,0.000164,7]
[351626349,1738671043208,-3000.0,0.000164,2]
[351626351,1738671043218,-400.08,0.000164,2]
[351626353,1738671043227,-400.08,0.000164,2]
[351626355,1738671043237,-400.08,0.000164,2]
[351626357,1738671043246,-3000.0,0.0001641,2]
[351626359,1738671043255,-400.08,0.0001641,2]
[351626361,1738671043264,-400.08,0.0001641,2]
[351626363,1738671043274,-3000.0,0.0001642,2]
[351626364,1738671043284,-533.384,0.0001642,2]
[351626366,1738671043293,-400.08,0.0001642,2]
[351626368,1738671043303,-400.08,0.0001642,2]
[351626370,1738671043312,-400.08,0.0001642,2]
[351626372,1738671043321,-400.08,0.00016426,2]
[351626374,1738671043331,-400.08,0.00016426,2]
[351626376,1738671043339,-400.08,0.00016427,2]
[351626378,1738671043348,-400.08,0.00016427,2]
[351626380,1738671043358,-3000.0,0.0001643,2]
[351626382,1738671043367,-157.44582769,0.00016436,2]
[351626384,1738671043377,-414.51774331,0.00016436,2]
[351626386,1738671043386,-500.0,0.00016436,2]
[351626388,1738671043396,-500.0,0.00016436,2]
[351626390,1738671043405,-441.69683991,0.00016436,2]
[351626392,1738671043415,-499.0,0.00016436,2]
[351626394,1738671043424,-6894.56792727,0.00016437,7]
[351626429,1738671043760,-501.98864177,0.00016437,7]
[351626431,1738671043772,-1144.19541397,0.00016437,7]
[351626434,1738671043789,-10254.78694747,0.00016437,7]
[351626718,1738671046719,-3059.99999998,0.00016437,7]
[351626928,1738671138103,184.950576,0.00013973,2]
[351626929,1738671732254,125000.5843231,0.00015012,2]
[351626931,1738671905779,300.0,0.00015012,2]
[351626934,1738672125737,2440.88111157,0.00015,2]
[351626974,1738672231890,-300.0,0.00015157,2]
[351626975,1738672231900,-3970.11427391,0.00015158,2]
[351626978,1738672231950,-2774.3,0.00015158,2]
[351626979,1738672232025,-18155.58572609,0.00015158,2]
[351626980,1738672232035,-299.22066,0.00015177,2]
[351626981,1738672232045,-3640.9785995,0.00015225,2]
[351626982,1738672232055,-3355.56689184,0.000153,2]
[351626983,1738672232069,-1557.54952893,0.000153,2]
[351626984,1738672232079,-500.0,0.00015342,2]
[351626985,1738672232089,-250.0,0.00015438,2]
[351626986,1738672232100,-926.76771905,0.000159,2]
[351626987,1738672232110,-465.34707117,0.00015985,2]
[351626988,1738672232119,-13258.95722438,0.00015993,2]
[351626989,1738672232128,-1000.0,0.00016,5]
[351626990,1738672232137,-1383.56856571,0.00016158,2]
[351626991,1738672232146,-1383.56856571,0.00016258,2]
[351626992,1738672232156,-642.6415713,0.00016273,2]
[351626993,1738672232165,-784.12009019,0.00016336,2]
[351626994,1738672232174,-181.36124753,0.00016337,2]
[351626995,1738672232183,-3000.0,0.00016338,2]
[351626996,1738672232193,-1383.56856571,0.00016358,2]
[351626997,1738672232206,-153.0,0.00016372,2]
[351626998,1738672232216,-153.0,0.00016372,2]
[351626999,1738672232226,-659.07,0.00016372,2]
[351627000,1738672232236,-153.0,0.00016384,2]
[351627001,1738672232245,-153.0,0.00016384,2]
[351627002,1738672232254,-153.0,0.00016384,2]
[351627003,1738672232263,-153.0,0.00016384,2]
[351627004,1738672232272,-153.0,0.00016384,2]
[351627005,1738672232283,-153.0,0.00016384,2]
[351627006,1738672232293,-153.0,0.00016384,2]
[351627007,1738672232302,-153.0,0.00016384,2]
[351627008,1738672232311,-153.0,0.00016384,2]
[351627009,1738672232321,-153.0,0.00016384,2]
[351627010,1738672232330,-153.0,0.00016384,2]
[351627011,1738672232339,-153.0,0.00016384,2]
[351627012,1738672232353,-153.0,0.00016384,2]
[351627013,1738672232363,-153.0,0.00016384,2]
[351627014,1738672232372,-153.0,0.00016384,2]
[351627015,1738672232381,-153.0,0.00016384,2]
[351627016,1738672232390,-153.0,0.00016384,2]
[351627017,1738672232400,-153.0,0.00016384,2]
[351627018,1738672232409,-241.48,0.00016384,2]
[351627019,1738672232418,-12010.60787214,0.000164,7]
[351627020,1738672232428,-153.0,0.00016412,2]
[351627021,1738672232437,-153.0,0.00016412,2]
[351627022,1738672232446,-153.0,0.00016412,2]
[351627023,1738672232455,-153.0,0.00016412,2]
[351627024,1738672232464,-227.68,0.00016412,2]
[351627025,1738672232474,-191.36271319,0.00016436,2]
[351627026,1738672232483,-500.0,0.00016436,2]
[351627027,1738672232492,-524.2736667,0.00016436,2]
[351627028,1738672232501,-499.0,0.00016436,2]
[351627029,1738672232510,-278591.17368195,0.00016437,7]
[351627030,1738672232526,-3071.18524705,0.00016437,7]
[351627031,1738672232536,-3586.34892436,0.00016437,7]
[351627233,1738672239752,-25202.30071751,0.00016437,7]
[351627235,1738672239764,-166296.96777866,0.00016437,7]
[351627524,1738672242795,-650.59092688,0.00016337,2]
[351627526,1738672242805,-6255.99834765,0.00016437,7]
[351627830,1738672245903,-3453.04664707,0.00016437,7]
[351627838,1738672245964,-1000.0,0.00016437,7]
[351627840,1738672245976,-5865.05239013,0.00016437,7]
[351628514,1738672436249,6732.35,0.00020453,120]
[351628515,1738672450782,9977.19495986,0.00020453,120]
[351628516,1738672488906,574.546196,0.00015012,2]
[351628517,1738672529274,192.918921,0.00013973,2]
[351628518,1738672659253,3410.91962651,0.00015012,2]
[351628520,1738672846312,540.3224408,0.00015012,2]
[351628570,1738673432042,-370.32369,0.00015137,2]
[351628572,1738673432053,-300.0,0.0001531,2]
[351628573,1738673432068,-24900.0,0.00015311,2]
[351628576,1738673432089,-500.0,0.00015342,2]
[351628578,1738673432119,-250.0,0.00015414,2]
[351628580,1738673432135,-717.95134728,0.00016,3]
[351628582,1738673432146,-10979.0,0.00016,2]
[351628584,1738673432155,-622.02880858,0.00016028,2]
[351628586,1738673432165,-13258.95722438,0.00016128,2]
[351628588,1738673432176,-1342.06150874,0.00016165,2]
[351628590,1738673432188,-1342.06150874,0.00016265,2]
[351628592,1738673432198,-321.3207857,0.00016272,2]
[351628594,1738673432209,-622.02880854,0.00016295,2]
[351628596,1738673432220,-163.0,0.00016297,2]
[351628598,1738673432233,-163.0,0.00016297,2]
[351628600,1738673432243,-163.0,0.00016297,2]
[351628602,1738673432252,-163.0,0.00016297,2]
[351628604,1738673432263,-163.0,0.00016297,2]
[351628606,1738673432272,-163.0,0.00016297,2]
[351628608,1738673432281,-163.0,0.00016297,2]
[351628610,1738673432291,-163.49,0.00016297,2]
[351628612,1738673432300,-161.0,0.00016297,2]
[351628614,1738673432309,-161.0,0.00016297,2]
[351628616,1738673432320,-161.0,0.00016297,2]
[351628618,1738673432330,-161.0,0.00016297,2]
[351628621,1738673432339,-161.0,0.00016297,2]
[351628622,1738673432349,-161.0,0.00016297,2]
[351628624,1738673432359,-161.0,0.00016297,2]
[351628626,1738673432367,-165.64,0.00016297,2]
[351628628,1738673432377,-211.70900227,0.00016337,2]
[351628630,1738673432386,-1342.06150874,0.00016365,2]
[351628632,1738673432398,-211.70900227,0.000164,2]
[351628634,1738673432408,-162.0,0.00016415,2]
[351628636,1738673432417,-162.0,0.00016415,2]
[351628638,1738673432426,-162.0,0.00016415,2]
[351628640,1738673432436,-162.0,0.00016415,2]
[351628642,1738673432444,-166.94,0.00016415,2]
[351628644,1738673432454,-499.0,0.00016436,2]
[351628646,1738673432463,-111657.53284592,0.00016437,7]
[351628652,1738673432513,-1283.77484579,0.00016437,7]
[351629020,1738673436365,-183756.30514292,0.00016437,7]
[351629153,1738673438073,-695.17649006,0.00016437,7]
[351629154,1738673438133,-905.01553515,0.00016437,7]
[351629414,1738673443259,-29441.7787517,0.00016437,7]
[351629440,1738673446208,-1151.35426422,0.00016435,2]
[351629441,1738673446218,-25876.57573578,0.00016437,7]
[351629442,1738673461581,185.001106,0.00013699,2]
[351629443,1738673787463,274.1126091,0.00014784,2]
[351629444,1738673825484,24900.0,0.00014778,2]
[351629445,1738673908159,193.2462,0.00013973,2]
[351629450,1738674250892,322.46928,0.0001438,2]
[351629451,1738674314349,185.001106,0.00013699,2]
[351629453,1738674511627,250.0,0.00014377,2]
[351629454,1738674519689,704.42204817,0.00015012,2]
[351629511,1738674632397,-1000.0,0.00015174,2]
[351629513,1738674632408,-218.59072856,0.00015231,2]
[351629515,1738674632418,-1000.0,0.00015247,2]
[351629516,1738674632428,-1000.0,0.00015249,2]
[351629517,1738674632438,-1000.0,0.00015276,2]
[351629519,1738674632448,-1000.0,0.00015317,2]
[351629521,1738674632457,-1000.0,0.00015321,2]
[351629523,1738674632467,-1000.0,0.00015339,2]
[351629525,1738674632477,-300.0,0.0001534,2]